bitfinex/quotes_BTCUSD_20250115
["timestamp","ask_amount","ask_price","bid_price","bid_amount"]
[1736934033157,0.00019424,97148.0,97147.0,0.85384373]
[1736934036824,0.00019424,97148.0,97147.0,0.54374381]
[1736934037015,0.07549424,97148.0,97147.0,0.54374381]
[1736934037223,0.07549424,97148.0,97147.0,0.31281]
[1736934037408,0.17519881,97148.0,97147.0,0.31281]
[1736934037588,0.49457807,97148.0,97147.0,0.31281]
[1736934037788,0.49457807,97148.0,97147.0,0.05661]
[1736934038002,0.30559057,97141.0,97140.0,0.09240003]
[1736934038202,0.40981749,97141.0,97140.0,0.09240003]
[1736934038569,0.205907,97131.0,97125.0,0.0008533]
[1736934039039,0.37621157,97131.0,97125.0,0.0008533]
[1736934039250,0.43442303,97131.0,97125.0,0.0008533]
[1736934039681,0.43442303,97131.0,97130.0,0.00205604]
[1736934039885,0.43442303,97131.0,97130.0,5.604e-05]
[1736934040082,0.37621157,97131.0,97130.0,5.604e-05]
[1736934040751,0.53011157,97131.0,97130.0,5.604e-05]
[1736934041167,0.53111157,97131.0,97130.0,5.604e-05]
[1736934041357,0.6564738,97131.0,97130.0,5.604e-05]
[1736934041495,0.6554738,97131.0,97130.0,5.604e-05]
[1736934041702,0.74161148,97131.0,97130.0,5.604e-05]
[1736934041883,0.74261148,97131.0,97130.0,5.604e-05]
[1736934042084,0.74861148,97131.0,97130.0,0.00105604]
[1736934042287,0.74261148,97131.0,97130.0,5.604e-05]
[1736934042702,0.74761148,97131.0,97130.0,5.604e-05]
[1736934043168,0.75161148,97131.0,97130.0,5.604e-05]
[1736934043798,0.75361148,97131.0,97130.0,5.604e-05]
[1736934044231,0.75161148,97131.0,97130.0,5.604e-05]
[1736934044615,0.75361148,97131.0,97130.0,5.604e-05]
[1736934046835,0.75361148,97131.0,97130.0,0.00090914]
[1736934051647,0.76397166,97131.0,97130.0,0.00090914]
[1736934060318,0.89938618,97131.0,97130.0,0.00090914]
[1736934060723,0.86397166,97131.0,97130.0,0.00090914]
[1736934060898,0.86197166,97131.0,97130.0,0.00090914]
[1736934061527,0.85197166,97131.0,97130.0,0.00090914]
[1736934061957,0.85997166,97131.0,97130.0,0.00190914]
[1736934062163,0.85197166,97131.0,97130.0,0.00090914]
[1736934062473,0.85997166,97131.0,97130.0,0.00190914]
[1736934063031,0.86397166,97131.0,97130.0,0.00190914]
[1736934063460,0.85997166,97131.0,97130.0,0.00190914]
[1736934063671,0.86397166,97131.0,97130.0,0.00190914]
[1736934063878,0.76397166,97131.0,97130.0,0.00190914]
[1736934064274,0.58219867,97131.0,97130.0,0.00190914]
[1736934064452,0.4824941,97131.0,97130.0,0.00190914]
[1736934064997,0.31761157,97131.0,97130.0,0.00190914]
[1736934065137,0.30961157,97131.0,97130.0,0.00090914]
[1736934065344,0.10370457,97131.0,97130.0,0.00090914]
[1736934065964,0.10570457,97131.0,97130.0,0.00090914]
[1736934066166,0.11170457,97131.0,97130.0,0.00090914]
[1736934066457,0.09970457,97131.0,97130.0,0.00090914]
[1736934066661,0.10570457,97131.0,97130.0,0.00090914]
[1736934067059,0.25968185,97131.0,97130.0,0.00090914]
[1736934067473,0.42009749,97131.0,97130.0,0.00090914]
[1736934067880,0.41609749,97131.0,97130.0,0.00090914]
[1736934068497,0.45940644,97131.0,97130.0,0.00090914]
[1736934069427,0.46340644,97131.0,97130.0,0.00090914]
[1736934069563,0.46540644,97131.0,97130.0,0.00090914]
[1736934069975,0.45109749,97131.0,97130.0,0.00190914]
[1736934070175,0.44909749,97131.0,97130.0,0.00190914]
[1736934070607,0.45209749,97131.0,97130.0,0.00190914]
[1736934071982,0.45173252,97131.0,97130.0,0.00190914]
[1736934081759,0.55173252,97131.0,97130.0,0.00190914]
[1736934081956,0.55173252,97131.0,97130.0,1.4e-07]
[1736934081957,0.65173252,97131.0,97130.0,1.4e-07]
[1736934082730,0.4493396,97126.0,97125.0,0.0008533]
[1736934082913,0.66392207,97126.0,97125.0,0.0008533]
[1736934083450,0.3053036,97104.0,97103.0,0.11395328]
[1736934084312,0.0993396,97104.0,97103.0,0.11395328]
[1736934084715,0.0993396,97104.0,97095.0,0.09240003]
[1736934084716,0.0993396,97113.0,97104.0,0.08]
[1736934084924,0.0993396,97113.0,97100.0,0.205972]
[1736934084925,0.0993396,97119.0,97102.0,0.08]
[1736934085121,0.0993396,97119.0,97106.0,0.08]
[1736934085323,0.0993396,97119.0,97107.0,0.205957]
[1736934085548,0.0993396,97119.0,97110.0,0.08]
[1736934085706,0.0993396,97119.0,97118.0,0.08]
[1736934086687,0.0993396,97120.0,97119.0,0.08]
[1736934088539,0.0993396,97120.0,97119.0,0.17340003]
[1736934089161,0.0993396,97120.0,97119.0,0.081]
[1736934089363,0.0993396,97120.0,97119.0,0.08]
[1736934089830,0.0993396,97120.0,97119.0,0.081]
[1736934090050,0.0993396,97120.0,97119.0,0.08]
[1736934090427,0.0993396,97120.0,97119.0,0.081]
[1736934091527,0.0993396,97120.0,97119.0,0.08]
[1736934091986,0.0993396,97120.0,97119.0,0.081]
[1736934092192,0.0993396,97120.0,97119.0,0.08]
[1736934092375,0.0993396,97120.0,97119.0,0.081]
[1736934099038,0.12273211,97120.0,97119.0,0.081]
[1736934099377,0.12273211,97120.0,97119.0,0.001]
[1736934099378,0.22695903,97120.0,97119.0,0.001]
[1736934099954,0.37695903,97120.0,97119.0,0.001]
[1736934100946,0.39036771,97120.0,97119.0,0.001]
[1736934101165,0.0993396,97105.0,97103.0,0.0785535]
[1736934101368,0.3053016,97105.0,97103.0,0.0785535]
[1736934103882,0.0993396,97105.0,97103.0,0.0785535]
[1736934105412,0.17806168,97118.0,97105.0,0.0777]
[1736934105555,0.0993396,97109.0,97105.0,0.0777]
[1736934105757,0.205944,97114.0,97105.0,0.0777]
[1736934106012,0.0993396,97109.0,97105.0,0.0777]
[1736934106273,0.0993396,97107.0,97105.0,0.0777]
[1736934108340,0.0993396,97107.0,97105.0,0.0787]
[1736934108541,0.0993396,97107.0,97105.0,0.0777]
[1736934108961,0.0993396,97107.0,97105.0,0.0787]
[1736934109172,0.0993396,97113.0,97105.0,0.0777]
[1736934109371,0.0993396,97111.0,97105.0,0.0807]
[1736934109583,0.0993396,97107.0,97105.0,0.0807]
[1736934109778,0.0993396,97109.0,97105.0,0.0807]
[1736934109979,0.0993396,97115.0,97107.0,0.0824]
[1736934110186,0.0993396,97115.0,97110.0,0.0824]
[1736934111450,0.09921565,97115.0,97110.0,0.0824]
[1736934112158,0.09921565,97115.0,97110.0,0.17480003]
[1736934113049,0.09921565,97115.0,97110.0,0.17580003]
[1736934113260,0.09921565,97115.0,97110.0,0.17480003]
[1736934114096,0.09921565,97115.0,97110.0,0.17580003]
[1736934114306,0.09921565,97115.0,97111.0,0.09240003]
[1736934115800,0.09921565,97115.0,97112.0,0.09240003]
[1736934117628,0.00179235,97120.0,97112.0,0.09340003]
[1736934117842,0.00179235,97120.0,97113.0,0.0824]
[1736934118039,0.101008,97120.0,97113.0,0.0824]
[1736934118214,0.09921565,97118.0,97113.0,0.0824]
[1736934118417,0.00179235,97120.0,97113.0,0.0824]
[1736934118622,0.101008,97120.0,97114.0,0.1299]
[1736934119469,0.00179235,97120.0,97115.0,0.0824]
[1736934119767,0.101008,97120.0,97115.0,0.0824]
[1736934120389,0.101008,97120.0,97115.0,0.288339]
[1736934120547,0.00179235,97120.0,97116.0,0.0824]
[1736934121096,0.101008,97120.0,97116.0,0.0824]
[1736934121291,0.101008,97120.0,97117.0,0.09240003]
[1736934122453,0.101008,97120.0,97117.0,0.09340003]
[1736934123491,0.101008,97120.0,97117.0,0.001]
[1736934125811,0.00179235,97120.0,97117.0,0.001]
[1736934126010,0.00179235,97120.0,97118.0,0.0831]
[1736934126210,0.101008,97120.0,97118.0,0.0831]
[1736934126633,0.00179235,97120.0,97118.0,0.0831]
[1736934127019,0.00179235,97120.0,97119.0,0.205932]
[1736934127423,0.00179235,97120.0,97118.0,0.0831]
[1736934127634,0.101008,97120.0,97118.0,0.0831]
[1736934128330,0.101008,97120.0,97118.0,0.0841]
[1736934130266,0.101008,97120.0,97118.0,0.17650003]
[1736934131112,0.101008,97120.0,97119.0,0.09240003]
[1736934132431,0.101008,97120.0,97119.0,0.09340003]
[1736934132764,0.101008,97120.0,97119.0,0.001]
[1736934134411,0.00179235,97120.0,97119.0,0.001]
[1736934135202,0.101008,97120.0,97119.0,0.09340003]
[1736934136674,0.101008,97120.0,97119.0,0.09239891]
[1736934136884,0.101008,97120.0,97118.0,0.17549891]
[1736934138103,0.00493271,97119.0,97118.0,0.17549891]
[1736934138459,0.00493271,97119.0,97118.0,0.17649891]
[1736934139293,0.00493271,97119.0,97118.0,0.0831]
[1736934139588,0.00493271,97119.0,97118.0,0.0841]
[1736934140626,0.00493271,97119.0,97118.0,0.0831]
[1736934141164,0.00493271,97119.0,97118.0,0.0841]
[1736934141367,0.00179235,97120.0,97118.0,0.0831]
[1736934141573,0.00179235,97120.0,97118.0,0.0841]
[1736934142000,0.00179235,97120.0,97118.0,0.0831]
[1736934142203,0.00179235,97120.0,97118.0,0.0841]
[1736934142379,0.00179235,97120.0,97118.0,0.0831]
[1736934142743,0.00179235,97120.0,97118.0,0.0841]
[1736934143922,0.00179235,97120.0,97118.0,0.0831]
[1736934144111,0.00179235,97120.0,97118.0,0.0839534]
[1736934144321,0.00179235,97120.0,97118.0,0.0849534]
[1736934144767,0.00179235,97120.0,97118.0,0.0859534]
[1736934144977,0.101008,97120.0,97118.0,0.0859534]
[1736934145241,0.00179235,97120.0,97118.0,0.0859534]
[1736934145368,0.101008,97120.0,97118.0,0.0859534]
[1736934146747,0.30514765,97119.0,97118.0,0.0028534]
[1736934147317,0.30514765,97119.0,97118.0,0.09548594]
[1736934147509,0.32814765,97119.0,97118.0,0.09348594]
[1736934147709,0.53045587,97119.0,97118.0,0.09348594]
[1736934147922,0.47814765,97119.0,97118.0,0.09448594]
[1736934148124,0.47814765,97119.0,97118.0,0.0018534]
[1736934148505,0.47814765,97119.0,97118.0,0.0008534]
[1736934148973,0.48014765,97119.0,97118.0,0.0008534]
[1736934149335,0.48114765,97119.0,97118.0,0.0008534]
[1736934149784,0.48014765,97119.0,97118.0,0.0008534]
[1736934150103,0.25121565,97119.0,97118.0,0.0008534]
[1736934150335,0.002,97119.0,97118.0,0.1292534]
[1736934150488,0.004,97119.0,97118.0,0.1292534]
[1736934150684,0.00179235,97120.0,97118.0,0.1292534]
[1736934150891,0.101008,97120.0,97118.0,0.1292534]
[1736934152064,0.102008,97120.0,97118.0,0.26785344]
[1736934152208,0.103008,97120.0,97118.0,0.26785344]
[1736934152884,0.30894,97120.0,97119.0,0.13860004]
[1736934153106,0.102008,97120.0,97119.0,0.13860004]
[1736934153366,0.103008,97120.0,97119.0,0.13860004]
[1736934153513,0.102008,97120.0,97119.0,0.13860004]
[1736934153724,0.09921565,97119.0,97118.0,0.13945344]
[1736934154342,0.09921565,97119.0,97118.0,0.0008534]
[1736934158775,0.00179235,97120.0,97119.0,0.127]
[1736934158976,0.00179235,97120.0,97119.0,0.33396154]
[1736934159228,0.00179235,97120.0,97119.0,0.332932]
[1736934159402,0.00179235,97120.0,97119.0,0.46934139]
[1736934159752,0.00228732,97131.0,97130.0,0.205909]
[1736934159969,0.00228732,97131.0,97130.0,0.43713592]
[1736934160164,0.00228732,97131.0,97130.0,0.46931617]
[1736934160499,0.00228732,97131.0,97130.0,0.43713592]
[1736934161467,0.00428732,97131.0,97130.0,0.43713592]
[1736934161787,0.00428732,97131.0,97130.0,0.44013592]
[1736934162199,0.00428732,97131.0,97130.0,0.44756991]
[1736934162842,0.00428732,97131.0,97130.0,0.45056991]
[1736934163053,0.00528732,97131.0,97130.0,0.45856991]
[1736934163267,0.00328732,97131.0,97130.0,0.45056991]
[1736934163488,0.00228732,97131.0,97130.0,0.45056991]
[1736934163692,0.00328732,97131.0,97130.0,0.45956991]
[1736934166327,0.00328732,97131.0,97130.0,0.73711308]
[1736934166854,0.00328732,97131.0,97130.0,0.45956991]
[1736934170369,0.00328732,97131.0,97130.0,0.44913592]
[1736934173174,0.00328732,97131.0,97130.0,0.344909]
[1736934174743,0.00328732,97131.0,97130.0,0.57599913]
[1736934176769,0.00328732,97131.0,97130.0,0.37009013]
[1736934177393,0.00328732,97131.0,97130.0,0.139]
[1736934179040,0.00228732,97131.0,97130.0,0.127]
[1736934179218,0.00228732,97131.0,97130.0,0.31384241]
[1736934179384,0.00328732,97131.0,97130.0,0.31984241]
[1736934179600,0.00328732,97131.0,97130.0,0.31384241]
[1736934179800,0.00428732,97131.0,97130.0,0.31984241]
[1736934180489,0.0041808,97131.0,97130.0,0.31984241]
[1736934181428,0.0041808,97131.0,97130.0,0.31784241]
[1736934181647,0.0041808,97131.0,97130.0,0.135]
[1736934182853,0.0041808,97131.0,97130.0,0.27362743]
[1736934183693,0.0041808,97131.0,97130.0,0.135]
[1736934184117,0.0041808,97131.0,97130.0,0.0565]
[1736934187326,0.0041808,97131.0,97130.0,0.19513886]
[1736934190459,0.0041808,97131.0,97130.0,0.37516578]
[1736934190945,0.0041808,97131.0,97130.0,0.23652692]
[1736934191415,0.0041808,97131.0,97130.0,0.46761705]
[1736934191621,0.0041808,97131.0,97130.0,0.46847065]
[1736934194248,0.0041808,97131.0,97130.0,0.23738052]
[1736934198509,0.0041808,97131.0,97130.0,0.0088536]
[1736934199522,0.0041808,97131.0,97130.0,0.24015778]
[1736934200138,0.0041808,97131.0,97130.0,0.0088536]
[1736934203494,0.0041808,97131.0,97130.0,0.0846536]
[1736934211623,0.0041808,97131.0,97130.0,0.22108699]
[1736934211866,0.0041808,97131.0,97130.0,0.26928699]
[1736934216061,0.0041808,97131.0,97130.0,0.37007134]
[1736934216218,0.00179151,97147.0,97142.0,0.3257]
[1736934216418,0.00179151,97147.0,97144.0,0.1297]
[1736934216618,0.00179151,97147.0,97146.0,0.285675]
[1736934216857,0.00179151,97147.0,97146.0,0.47200839]
[1736934217096,0.00179151,97147.0,97146.0,0.57200839]
[1736934217835,0.00179151,97147.0,97146.0,0.88081839]
[1736934218221,0.00179151,97147.0,97146.0,0.88481839]
[1736934218638,0.00179151,97147.0,97146.0,1.21051839]
[1736934219293,0.00179151,97147.0,97146.0,1.21151839]
[1736934219529,0.00179151,97147.0,97146.0,1.24224236]
[1736934219745,0.00179151,97147.0,97146.0,1.39302671]
[1736934221008,0.00179151,97147.0,97146.0,1.38802671]
[1736934221209,0.00179151,97147.0,97146.0,1.39702671]
[1736934221404,0.00179151,97147.0,97146.0,1.40102671]
[1736934222376,0.00179151,97147.0,97146.0,1.94562671]
[1736934227879,0.00179151,97147.0,97146.0,2.3544454]
[1736934228307,0.00179151,97147.0,97146.0,1.94562671]
[1736934229550,0.00179382,97175.0,97158.0,0.20585]
[1736934229755,0.00179382,97175.0,97160.0,0.205846]
[1736934229957,0.00179382,97175.0,97160.0,0.61884292]
[1736934230402,0.00179382,97175.0,97160.0,0.62476292]
[1736934230967,0.00184397,97161.0,97160.0,0.70516292]
[1736934231208,0.00184397,97161.0,97160.0,0.98189513]
[1736934231924,0.00184397,97161.0,97160.0,0.71216292]
[1736934232727,0.00175251,97161.0,97160.0,0.71216292]
[1736934234032,0.00175251,97161.0,97160.0,0.72233839]
[1736934234233,0.00175251,97161.0,97160.0,1.04803839]
[1736934238953,0.00175251,97161.0,97160.0,1.04211839]
[1736934239153,0.00175251,97161.0,97160.0,1.04803839]
[1736934239350,0.00175251,97161.0,97160.0,1.04211839]
[1736934239582,0.00175251,97161.0,97160.0,0.95154292]
[1736934240387,0.00175251,97161.0,97160.0,0.847316]
[1736934240765,0.07235251,97161.0,97160.0,0.64147]
[1736934241478,0.00175251,97161.0,97160.0,0.63647]
[1736934241871,0.00275251,97161.0,97160.0,0.63647]
[1736934242077,0.00175251,97161.0,97160.0,0.63647]
[1736934242531,0.00175251,97161.0,97160.0,0.74169692]
[1736934242976,0.00175251,97161.0,97160.0,0.73969692]
[1736934243176,0.00275251,97161.0,97160.0,0.73969692]
[1736934243914,0.00175251,97161.0,97160.0,0.73969692]
[1736934244070,0.00175251,97161.0,97160.0,0.74069692]
[1736934244613,0.00175251,97161.0,97160.0,0.74369692]
[1736934245072,0.00175251,97161.0,97160.0,0.74569692]
[1736934246637,0.00175251,97161.0,97160.0,0.74369692]
[1736934247172,0.00175251,97161.0,97160.0,0.74569692]
[1736934247350,0.00175251,97161.0,97160.0,0.83786287]
[1736934248538,0.00175251,97161.0,97160.0,0.74569692]
[1736934249987,0.00175251,97161.0,97160.0,1.008244]
[1736934251029,0.00175251,97161.0,97160.0,0.77782912]
[1736934251440,0.00175251,97161.0,97160.0,0.77868242]
[1736934254751,0.00175251,97161.0,97160.0,0.74655022]
[1736934256443,0.00162864,97161.0,97160.0,0.74655022]
[1736934259102,0.00162864,97161.0,97160.0,1.02328243]
[1736934261167,0.00162864,97161.0,97160.0,0.74655022]
[1736934271498,0.00162864,97161.0,97160.0,0.9048082]
[1736934272550,0.00162864,97161.0,97160.0,0.9028082]
[1736934272978,0.00162864,97161.0,97160.0,0.9058082]
[1736934273380,0.00162864,97161.0,97160.0,0.9028082]
[1736934273601,0.00162864,97161.0,97160.0,0.9058082]
[1736934273806,0.00162864,97161.0,97160.0,0.9008082]
[1736934274021,0.00162864,97161.0,97160.0,0.9088082]
[1736934274224,0.00162864,97161.0,97160.0,0.8978082]
[1736934274756,0.00162864,97161.0,97160.0,0.9108082]
[1736934275817,0.00162864,97161.0,97160.0,0.9068082]
[1736934276277,0.00162864,97161.0,97160.0,0.9088082]
[1736934276608,0.00162864,97161.0,97160.0,0.9068082]
[1736934276862,0.00162864,97161.0,97160.0,0.8978082]
[1736934277012,0.00162864,97161.0,97160.0,0.9038082]
[1736934277211,0.00162864,97161.0,97160.0,0.8988082]
[1736934277731,0.00162864,97161.0,97160.0,0.9028082]
[1736934277856,0.00162864,97161.0,97160.0,0.8978082]
[1736934278264,0.00162864,97161.0,97160.0,0.9038082]
[1736934278990,0.00162864,97161.0,97160.0,0.9058082]
[1736934280475,0.00162864,97161.0,97160.0,1.31591375]
[1736934281974,0.00162864,97161.0,97160.0,0.9058082]
[1736934289726,0.00179446,97167.0,97161.0,0.00045982]
[1736934289931,0.00179446,97167.0,97162.0,0.3422259]
[1736934290185,0.00179446,97167.0,97162.0,0.6509859]
[1736934290338,0.00179446,97167.0,97162.0,0.7303859]
[1736934290702,0.00179446,97167.0,97162.0,2.2303859]
[1736934290908,0.00179446,97167.0,97162.0,2.2780859]
[1736934291324,0.00179446,97167.0,97162.0,0.7780859]
[1736934291539,0.00179446,97167.0,97162.0,1.66671967]
[1736934291705,0.00179446,97167.0,97162.0,1.66750402]
[1736934292624,0.00179446,97167.0,97162.0,1.67250402]
[1736934292831,0.00133673,97163.0,97162.0,1.67250402]
[1736934293034,0.00133673,97163.0,97162.0,1.68150402]
[1736934293235,0.00133673,97163.0,97162.0,1.70205966]
[1736934293434,0.00133673,97163.0,97162.0,1.38912589]
[1736934300497,0.00133673,97163.0,97162.0,1.23912589]
[1736934300819,0.00133673,97163.0,97162.0,1.14418154]
[1736934302592,0.00133673,97163.0,97162.0,1.06478154]
[1736934302796,0.00133673,97163.0,97162.0,1.03262356]
[1736934303918,0.00133673,97163.0,97162.0,1.02762356]
[1736934304140,0.00133673,97163.0,97162.0,1.05976169]
[1736934304322,0.00133673,97163.0,97162.0,1.05276169]
[1736934304743,0.00133673,97163.0,97162.0,1.05776169]
[1736934304980,0.00133673,97163.0,97162.0,1.05976169]
[1736934305356,0.00017986,97167.0,97164.0,0.205837]
[1736934305560,0.00017986,97167.0,97166.0,0.205833]
[1736934305761,0.00017986,97167.0,97166.0,0.61880992]
[1736934307873,0.00017986,97167.0,97166.0,0.62480992]
[1736934308068,0.00017986,97167.0,97166.0,0.62680992]
[1736934310000,0.00017986,97167.0,97166.0,0.70400992]
[1736934310220,0.00017986,97167.0,97166.0,0.73615159]
[1736934310562,0.00017986,97167.0,97166.0,0.74668894]
[1736934314131,0.00017986,97167.0,97166.0,0.75248894]
[1736934314331,0.00017986,97167.0,97166.0,0.74668894]
[1736934314732,0.00017986,97167.0,97166.0,0.72034727]
[1736934317085,0.00017986,97167.0,97166.0,0.64314727]
[1736934317652,0.00017986,97167.0,97166.0,0.53312035]
[1736934317857,0.00017986,97167.0,97166.0,0.522583]
[1736934318272,0.00017986,97167.0,97166.0,0.520583]
[1736934318587,0.00017986,97167.0,97166.0,0.514583]
[1736934318772,0.00017986,97167.0,97166.0,0.79535742]
[1736934319380,0.00017986,97167.0,97166.0,0.79235742]
[1736934319713,0.00017986,97167.0,97166.0,0.52565593]
[1736934320299,0.00017986,97167.0,97166.0,0.514583]
[1736934320529,0.00017986,97167.0,97166.0,0.516583]
[1736934320704,0.00017986,97167.0,97166.0,0.521583]
[1736934324181,0.00017986,97167.0,97166.0,0.79935742]
[1736934324979,0.00017986,97167.0,97166.0,0.521583]
[1736934328616,0.00017986,97167.0,97166.0,0.598783]
[1736934333059,0.00017986,97167.0,97166.0,0.70300992]
[1736934334014,0.00017986,97167.0,97166.0,0.69600992]
[1736934334402,0.00017986,97167.0,97166.0,0.73017198]
[1736934334632,0.00017986,97167.0,97166.0,0.73517198]
[1736934335299,0.00017986,97167.0,97166.0,0.73017198]
[1736934335723,0.00017986,97167.0,97166.0,0.73617198]
[1736934336101,0.00017986,97167.0,97166.0,0.73417198]
[1736934336504,0.00017986,97167.0,97166.0,0.73617198]
[1736934337610,0.00017986,97167.0,97166.0,0.522583]
[1736934337810,0.12239551,97167.0,97166.0,0.31675]
[1736934338015,0.35753506,97167.0,97166.0,0.31675]
[1736934338220,0.48386198,97167.0,97166.0,0.31675]
[1736934339283,0.48386198,97167.0,97166.0,0.31475]
[1736934340182,0.48486198,97167.0,97166.0,0.31475]
[1736934340418,0.00117986,97167.0,97166.0,0.30875]
[1736934340828,0.10039551,97167.0,97166.0,0.30875]
[1736934341011,0.10139551,97167.0,97166.0,0.30875]
[1736934341209,0.00217986,97167.0,97166.0,0.30875]
[1736934341412,0.00317986,97167.0,97166.0,0.30875]
[1736934341815,0.00317986,97167.0,97166.0,0.31275]
[1736934342338,0.00117986,97167.0,97166.0,0.31275]
[1736934342543,0.00117986,97167.0,97166.0,0.31375]
[1736934350729,0.34399551,97167.0,97166.0,0.31375]
[1736934351135,0.44822243,97167.0,97166.0,0.31375]
[1736934351790,0.44722243,97167.0,97166.0,0.30975]
[1736934352209,0.44822243,97167.0,97166.0,0.30875]
[1736934352591,0.45022243,97167.0,97166.0,0.30875]
[1736934352770,0.00317986,97167.0,97166.0,0.30875]
[1736934353177,0.00117986,97167.0,97166.0,0.30875]
[1736934353511,0.00217986,97167.0,97166.0,0.30875]
[1736934353922,0.00117986,97167.0,97166.0,0.30875]
[1736934354128,0.00017986,97167.0,97166.0,0.30875]
[1736934354524,0.00017986,97167.0,97166.0,0.31275]
[1736934355294,0.00017986,97167.0,97166.0,0.31375]
[1736934361033,0.00017986,97167.0,97166.0,0.59147556]
[1736934365402,0.00017986,97167.0,97166.0,1.10400248]
[1736934365587,0.00017986,97167.0,97166.0,1.19163549]
[1736934366414,0.00017986,97167.0,97166.0,0.91390993]
[1736934368131,0.00017986,97167.0,97166.0,0.90927117]
[1736934368352,0.00017986,97167.0,97166.0,0.87713692]
[1736934373068,0.00017986,97167.0,97166.0,0.87684669]
[1736934373936,0.07135487,97180.0,97178.0,0.205807]
[1736934375000,0.07335487,97180.0,97178.0,0.205807]
[1736934376783,0.0706,97179.0,97178.0,0.205807]
[1736934376986,0.45017287,97173.0,97172.0,0.2776108]
[1736934377188,0.45218587,97167.0,97166.0,0.30845977]
[1736934377389,0.55820556,97167.0,97166.0,0.30845977]
[1736934377738,0.45397864,97167.0,97166.0,0.30845977]
[1736934378560,0.45497864,97167.0,97166.0,0.30845977]
[1736934378780,0.75190556,97167.0,97166.0,0.30845977]
[1736934378999,0.75290556,97167.0,97166.0,0.30945977]
[1736934379403,0.75190556,97167.0,97166.0,0.30845977]
[1736934379579,0.85613248,97167.0,97166.0,0.30845977]
[1736934380440,0.85513248,97167.0,97166.0,0.30845977]
[1736934380822,0.86762652,97167.0,97166.0,0.30845977]
[1736934381593,0.87162652,97167.0,97166.0,0.30845977]
[1736934381796,0.87362652,97167.0,97166.0,0.30945977]
[1736934383971,1.20342652,97167.0,97166.0,0.30945977]
[1736934384341,1.19942652,97167.0,97166.0,0.30945977]
[1736934384560,1.20342652,97167.0,97166.0,0.30945977]
[1736934384803,0.9951996,97167.0,97166.0,0.30845977]
[1736934384983,0.87100556,97167.0,97166.0,0.30945977]
[1736934385796,0.89200556,97167.0,97166.0,0.30845977]
[1736934386550,0.15379277,97167.0,97166.0,0.30845977]
[1736934386889,0.22814764,97167.0,97166.0,0.30845977]
[1736934387300,0.24814764,97167.0,97166.0,0.30845977]
[1736934387509,0.3141271,97167.0,97166.0,0.30845977]
[1736934387713,0.24914764,97167.0,97166.0,0.30845977]
[1736934387914,0.25114764,97167.0,97166.0,0.30845977]
[1736934388371,0.24914764,97167.0,97166.0,0.30845977]
[1736934388573,0.25114764,97167.0,97166.0,0.30845977]
[1736934389423,0.35537456,97167.0,97166.0,0.30845977]
[1736934389626,0.45265862,97167.0,97166.0,0.30845977]
[1736934392001,0.35537456,97167.0,97166.0,0.30845977]
[1736934400060,0.35537456,97167.0,97166.0,0.30931327]
[1736934401630,0.42597456,97167.0,97166.0,0.30931327]
[1736934402372,0.42397456,97167.0,97166.0,0.30931327]
[1736934402575,0.42297456,97167.0,97166.0,0.30931327]
[1736934402796,0.62497456,97167.0,97166.0,0.31031327]
[1736934402955,0.62697456,97167.0,97166.0,0.30931327]
[1736934403163,0.73120148,97167.0,97166.0,0.30931327]
[1736934403342,0.72920148,97167.0,97166.0,0.31031327]
[1736934403542,0.72920148,97167.0,97166.0,0.30931327]
[1736934403806,0.73320148,97167.0,97166.0,0.30931327]
[1736934404683,0.63320148,97167.0,97166.0,0.30931327]
[1736934404854,0.73320148,97167.0,97166.0,0.30931327]
[1736934405068,0.73920148,97167.0,97166.0,0.31031327]
[1736934408003,0.66860148,97167.0,97166.0,0.31031327]
[1736934408201,0.66460148,97167.0,97166.0,0.31031327]
[1736934408437,0.65660148,97167.0,97166.0,0.30931327]
[1736934408638,0.28501969,97167.0,97166.0,0.30931327]
[1736934408781,0.28901969,97167.0,97166.0,0.31031327]
[1736934408982,0.46037456,97167.0,97166.0,0.31031327]
[1736934410432,0.56037456,97167.0,97166.0,0.31031327]
[1736934410656,0.63097456,97167.0,97166.0,0.31031327]
[1736934410874,0.73520148,97167.0,97166.0,0.31031327]
[1736934417066,1.06500148,97167.0,97166.0,0.31031327]
[1736934420037,1.08710148,97167.0,97166.0,0.28973027]
[1736934420281,1.08710148,97167.0,97131.0,0.0008536]
[1736934420282,0.07135487,97132.0,97131.0,0.0008536]
[1736934420464,0.54858179,97132.0,97131.0,0.00090311]
[1736934421223,0.55873155,97132.0,97131.0,0.00090311]
[1736934421429,0.55873155,97132.0,97126.0,0.09255113]
[1736934421430,0.42135487,97127.0,97126.0,8.4e-07]
[1736934421668,0.42135487,97124.0,97123.0,0.13882669]
[1736934421885,0.54858179,97124.0,97123.0,0.13882669]
[1736934422116,0.42135487,97121.0,97120.0,0.12417696]
[1736934422323,0.44435487,97106.0,97092.0,0.0008536]
[1736934422548,0.82951169,97106.0,97092.0,0.0008536]
[1736934422721,0.82951169,97106.0,97105.0,0.00134879]
[1736934423481,0.42738087,97075.0,97074.0,0.12191597]
[1736934423689,0.53160779,97075.0,97074.0,0.12196522]
[1736934425078,0.53460779,97075.0,97074.0,0.12196522]
[1736934425291,0.62927197,97075.0,97074.0,0.12196522]
[1736934425501,0.62627197,97075.0,97074.0,0.12196522]
[1736934425718,0.62827197,97075.0,97074.0,0.12196522]
[1736934425921,0.63127197,97075.0,97074.0,0.12196522]
[1736934426146,0.65427197,97075.0,97074.0,4.925e-05]
[1736934427831,0.65227197,97075.0,97074.0,4.925e-05]
[1736934428033,0.64927197,97075.0,97074.0,4.925e-05]
[1736934428243,0.65127197,97075.0,97074.0,4.925e-05]
[1736934428454,0.65527197,97075.0,97074.0,4.925e-05]
[1736934428812,0.75527197,97075.0,97074.0,4.925e-05]
[1736934429109,0.75327197,97075.0,97074.0,4.925e-05]
[1736934429521,0.75527197,97075.0,97074.0,4.925e-05]
[1736934434468,0.75527197,97075.0,97074.0,0.00090335]
[1736934435279,0.75527197,97075.0,97074.0,0.00046535]
[1736934436073,0.85527197,97075.0,97074.0,0.00046535]
[1736934436245,0.84927197,97075.0,97074.0,0.00046535]
[1736934436657,0.85227197,97075.0,97074.0,0.00046535]
[1736934437829,1.17907197,97075.0,97074.0,0.00046535]
[1736934438025,1.18507197,97075.0,97074.0,0.00146535]
[1736934438224,1.18807197,97075.0,97074.0,0.00146535]
[1736934438455,1.18207197,97075.0,97074.0,0.00046535]
[1736934438630,1.18907197,97075.0,97074.0,0.00146535]
[1736934440757,1.08907197,97075.0,97074.0,0.00146535]
[1736934440972,1.18907197,97075.0,97074.0,0.00146535]
[1736934444748,1.08907197,97075.0,97074.0,0.00146535]
[1736934444923,1.18907197,97075.0,97074.0,0.00146535]
[1736934445757,1.19086643,97075.0,97074.0,0.00146535]
[1736934448250,1.09086643,97075.0,97074.0,0.00146535]
[1736934451077,1.01951156,97075.0,97074.0,0.07696535]
[1736934451485,0.82484738,97075.0,97074.0,0.07696535]